bitfinex-derivatives/quotes_ETHF0:USTF0_20250110
["timestamp","ask_amount","ask_price","bid_price","bid_amount"]
[1736487374092,0.9225,3264.3,3263.5,3.2078]
[1736487374284,0.75867,3264.3,3263.9,0.3064]
[1736487374990,0.75867,3264.3,3264.0,0.30639]
[1736487375386,0.4523,3264.3,3264.0,0.30639]
[1736487376187,0.75867,3264.3,3264.0,0.30639]
[1736487376387,0.75867,3264.3,3263.9,0.3064]
[1736487377185,0.30638,3264.2,3263.9,0.3064]
[1736487377389,0.4523,3264.3,3263.6,2.82258662]
[1736487377594,0.30637,3264.3,3264.0,0.30639]
[1736487378293,3.2078,3264.4,3263.6,2.82258662]
[1736487378487,3.2078,3264.4,3263.6,0.9033]
[1736487378792,0.30642,3263.8,3263.6,0.9033]
[1736487379192,5.12708662,3264.4,3263.6,0.9033]
[1736487379387,3.2078,3264.4,3263.6,2.82258662]
[1736487379602,3.2078,3264.4,3264.1,0.30638]
[1736487379786,3.2078,3264.4,3264.0,0.30638]
[1736487380092,3.2078,3264.4,3264.1,40.8]
[1736487380093,0.30637,3264.3,3264.1,40.8]
[1736487380297,3.51416,3264.4,3264.1,40.8]
[1736487380993,0.4702,3264.6,3264.1,40.8]
[1736487381184,0.30636,3264.4,3264.1,41.10638]
[1736487381383,0.30636,3264.4,3264.1,40.8]
[1736487381796,0.30637,3264.3,3264.1,40.8]
[1736487382092,0.4702,3264.6,3264.1,40.8]
[1736487382289,0.30636,3264.4,3264.1,40.8]
[1736487382687,0.30635,3264.5,3264.2,0.30637]
[1736487382882,0.4702,3264.6,3264.1,40.8]
[1736487383092,3.51412,3264.8,3264.4,0.30635]
[1736487383391,0.77491,3264.9,3264.6,0.30634]
[1736487383586,0.4686,3264.9,3264.7,0.30632]
[1736487383793,0.4686,3264.9,3264.6,0.9122]
[1736487383992,0.4686,3264.9,3264.6,1.21855]
[1736487384200,0.30633,3264.8,3264.6,0.9122]
[1736487384691,0.4686,3264.9,3264.6,0.9122]
[1736487385088,3.2078,3264.8,3264.6,0.9122]
[1736487385295,3.51411,3264.8,3264.6,0.9122]
[1736487385492,3.2078,3264.8,3264.6,1.21852]
[1736487385698,3.2078,3264.8,3264.7,0.30632]
[1736487385998,3.2078,3264.8,3264.6,1.21852]
[1736487386598,0.30629,3265.1,3264.8,0.3063]
[1736487386896,3.2078,3265.3,3264.8,1.91928662]
[1736487387086,3.2078,3265.7,3265.2,0.30627]
[1736487387292,3.2078,3265.7,3265.3,42.44316]
[1736487387293,3.51403,3265.7,3265.3,42.44316]
[1736487387494,3.2078,3265.7,3265.3,42.1369]
[1736487387799,0.30624,3265.6,3265.3,42.44316]
[1736487388200,0.4797,3266.0,3265.3,42.1369]
[1736487388589,0.30622,3265.8,3265.3,42.1369]
[1736487388901,0.3062,3266.0,3265.6,0.30623]
[1736487389197,3.2078,3266.1,3265.4,1.91928662]
[1736487389597,0.30622,3265.8,3265.4,2.22553662]
[1736487390100,0.30622,3265.8,3265.5,0.30624]
[1736487390501,0.3062,3266.0,3265.6,0.30623]
[1736487390701,0.30621,3265.9,3265.6,0.30623]
[1736487390897,3.2078,3266.1,3265.4,1.91928662]
[1736487391098,3.2078,3266.1,3265.8,0.30621]
[1736487391402,3.2078,3266.1,3265.9,0.3062]
[1736487391601,3.2078,3266.1,3265.7,1.91928662]
[1736487391900,3.2078,3266.1,3265.8,0.30621]
[1736487392403,3.2078,3266.1,3265.9,0.3062]
[1736487392600,3.2078,3266.1,3265.7,1.91928662]
[1736487392804,3.2078,3266.1,3265.9,0.3062]
[1736487393604,3.2078,3266.1,3265.8,0.30621]
[1736487395395,3.2078,3266.1,3265.9,0.4611]
[1736487395703,3.2078,3266.1,3266.0,0.9092]
[1736487397507,3.2078,3266.1,3265.9,0.4611]
[1736487397699,0.30622,3265.8,3265.6,0.8928]
[1736487398103,0.9021,3266.0,3265.6,0.8928]
[1736487398302,3.2078,3266.1,3265.6,0.8928]
[1736487398507,3.2078,3266.1,3265.8,0.30621]
[1736487398807,3.2078,3266.1,3265.9,0.3062]
[1736487399203,3.2078,3266.1,3266.0,0.7769]
[1736487399401,3.2078,3266.1,3266.0,2.69618662]
[1736487399908,0.01181,3266.5,3266.4,0.30616]
[1736487400212,0.01181,3266.5,3266.4,41.10616]
[1736487400600,0.01181,3266.5,3266.4,42.00726]
[1736487400801,0.01181,3266.5,3266.4,45.21506]
[1736487401402,3.2078,3267.2,3266.5,0.30614]
[1736487401705,3.2078,3267.2,3266.5,0.30615]
[1736487401906,0.30612,3266.9,3266.6,0.4566]
[1736487402105,0.30612,3266.8,3266.6,0.4566]
[1736487402310,3.2078,3267.2,3266.6,0.4566]
[1736487402607,0.30612,3266.9,3266.6,0.4566]
[1736487403007,0.3061,3267.0,3266.6,0.76273]
[1736487403303,3.2078,3267.2,3266.7,0.30613]
[1736487403304,0.3061,3267.1,3266.7,0.30613]
[1736487403710,3.2078,3267.2,3266.6,0.4566]
[1736487403909,0.30611,3267.0,3266.6,0.76274]
[1736487404404,3.2078,3267.2,3266.4,44.9089]
[1736487404612,0.30613,3266.8,3266.4,4.41505]
[1736487404812,0.30613,3266.7,3266.4,4.41505]
[1736487405104,3.2078,3266.8,3266.1,41.2376]
[1736487405410,0.30618,3266.2,3266.1,42.1809]
[1736487406209,0.4789,3266.6,3266.1,42.1809]
[1736487406513,0.30617,3266.3,3266.1,42.1809]
[1736487406713,0.30616,3266.4,3266.1,42.1809]
[1736487406912,0.30615,3266.5,3266.2,0.30618]
[1736487407209,0.30615,3266.5,3266.1,42.1809]
[1736487407210,0.3061,3267.1,3266.7,0.30612]
[1736487407410,0.3061,3267.1,3266.8,1.25402]
[1736487407604,0.3061,3267.1,3266.8,0.9479]
[1736487407908,3.2078,3267.2,3266.8,0.9479]
[1736487407909,0.3061,3267.0,3266.8,0.9479]
[1736487408109,0.30613,3266.8,3266.4,3.2078]
[1736487408306,0.7522,3267.1,3266.7,0.30612]
[1736487408801,3.2078,3267.2,3266.6,1.91928662]
[1736487409108,0.4711,3267.4,3267.0,0.3061]
[1736487409410,0.4711,3267.4,3266.9,3.2078]
[1736487409411,0.3061,3267.0,3266.9,3.2078]
[1736487409713,0.3061,3267.1,3266.9,3.2078]
[1736487409911,0.3061,3267.1,3266.4,0.9106]
[1736487409912,0.30613,3266.8,3266.4,1.21675]
[1736487410110,3.2078,3267.0,3266.4,0.9106]
[1736487410410,3.2078,3267.0,3266.8,0.30612]
[1736487410610,3.2078,3267.0,3266.9,0.75691]
[1736487411007,0.77717,3267.4,3266.9,0.4508]
[1736487411308,3.2078,3267.6,3267.2,1.91928662]
[1736487411611,3.51385,3267.6,3267.2,2.22536662]
[1736487411809,3.51385,3267.6,3267.4,0.30606]
[1736487411810,3.2078,3267.6,3267.4,0.30606]
[1736487412007,3.21015188,3268.0,3267.5,0.30606]
[1736487412208,3.21015188,3268.0,3267.2,1.91928662]
[1736487412511,0.30602,3267.9,3267.3,0.30607]
[1736487412715,0.77193,3267.8,3267.6,40.8]
[1736487412905,0.4659,3267.8,3267.6,40.8]
[1736487413112,0.30604,3267.7,3267.6,40.8]
[1736487413314,0.30607,3267.4,3267.0,1.1829]
[1736487413809,0.30607,3267.4,3267.1,40.8]
[1736487414009,3.2078,3267.6,3267.1,41.10609]
[1736487414214,3.2078,3267.6,3267.1,40.8]
[1736487414413,3.51385,3267.6,3267.2,0.30608]
[1736487414813,3.51385,3267.6,3267.1,40.8]
[1736487415012,3.51385,3267.6,3267.2,0.30608]
[1736487415213,3.2078,3267.6,3267.1,40.8]
[1736487415414,3.2078,3267.6,3267.4,0.30606]
[1736487415913,3.2078,3267.6,3267.1,40.8]
[1736487415914,3.2078,3267.6,3267.3,0.30607]
[1736487416109,3.2078,3267.6,3267.1,40.8]
[1736487416311,3.2078,3267.6,3267.2,1.91928662]
[1736487416519,0.76272,3267.9,3267.5,0.30605]
[1736487416707,0.76272,3267.9,3267.6,1.3482]
[1736487417217,0.30602,3267.9,3267.6,1.3482]
[1736487417609,3.21015188,3268.0,3267.6,1.3482]
[1736487417811,3.51616188,3268.0,3267.6,1.65424]
[1736487418115,3.51616188,3268.0,3267.5,2.22533662]
[1736487418305,3.2078,3269.2,3267.8,1.91928662]
[1736487418509,0.30591,3269.0,3268.2,0.30598]
[1736487418710,0.30593,3268.9,3268.6,1.91928662]
[1736487418912,3.2078,3269.2,3268.9,2.22520662]
[1736487419211,3.2078,3269.2,3268.9,1.91928662]
[1736487419412,3.2078,3269.6,3269.0,44.0078]
[1736487419619,3.2078,3270.2,3269.5,1.91928662]
[1736487419811,0.4512,3270.7,3269.9,1.91928662]
[1736487420011,0.30573,3271.0,3270.3,1.91928662]
[1736487420212,3.96283,3271.1,3270.3,2.22507662]
[1736487420510,3.2078,3271.1,3270.6,1.91928662]
[1736487420712,3.2078,3271.1,3270.9,1.91928662]
[1736487421026,2.87499592,3271.9,3271.3,0.3057]
[1736487421316,2.87499592,3271.9,3271.3,5.81026406]
[1736487421612,2.87499592,3271.9,3271.3,44.3135]
[1736487422616,2.87499592,3271.9,3270.3,0.76448]
[1736487422617,3.2078,3271.6,3270.5,3.2078]
[1736487422817,3.2078,3271.2,3270.5,3.2078]
[1736487423116,2.29676406,3270.7,3269.9,1.08441231]
[1736487423318,3.2078,3270.2,3269.9,0.77858231]
[1736487423515,0.30581,3270.1,3269.9,0.77858231]
[1736487423721,3.2078,3270.2,3269.9,0.77858231]
[1736487424022,0.9118,3270.6,3269.9,0.77858231]
[1736487424313,1.21757,3270.6,3269.9,0.77858231]
[1736487424614,0.30586,3269.7,3269.2,3.2078]
[1736487424819,3.2078,3270.0,3269.2,3.2078]
[1736487425012,3.2078,3269.5,3268.9,0.30592]
[1736487425212,0.30588,3269.4,3268.8,3.2078]
[1736487425516,0.4476,3269.4,3268.5,1.261]
[1736487425723,3.2078,3268.9,3267.9,3.2078]
[1736487425921,3.2078,3268.4,3267.6,40.8]
[1736487426226,3.2078,3267.9,3267.6,40.8]
[1736487426516,3.2078,3268.3,3267.6,40.8]
[1736487426710,0.4482,3269.3,3268.2,5.50456406]
[1736487426919,3.2078,3270.2,3269.6,0.30586]
[1736487427112,3.2078,3270.2,3269.4,3.2078]
[1736487427415,3.2078,3269.8,3269.2,41.10589]
[1736487427717,3.2078,3269.8,3269.3,0.30589]
[1736487427916,3.51364,3269.8,3269.2,41.10589]
[1736487428114,0.30586,3269.7,3269.2,40.8]
[1736487428315,3.2078,3269.3,3268.5,3.2078]
[1736487428521,0.4554,3269.2,3268.5,3.2078]
[1736487428817,0.4554,3269.2,3268.6,40.8]
[1736487429318,0.4554,3269.2,3268.6,41.10595]
[1736487429519,0.4554,3269.2,3268.9,0.30592]
[1736487429813,0.4554,3269.2,3268.8,0.30593]
[1736487430414,0.4554,3269.2,3268.6,40.8]
[1736487430614,0.4554,3269.2,3268.9,0.30592]
[1736487431220,0.4554,3269.2,3268.6,40.8]
[1736487431618,0.30594,3268.7,3268.1,3.2078]
[1736487431811,3.2078,3268.5,3267.8,0.4503]
[1736487432016,3.2078,3268.1,3267.8,0.4503]
[1736487432211,3.2078,3268.1,3267.9,40.8]
[1736487432722,3.51381,3268.1,3267.9,40.8]
[1736487432922,3.5138,3268.1,3267.9,40.8]
[1736487433224,3.5138,3268.1,3267.2,3.2078]
[1736487433225,3.2078,3268.1,3267.2,3.2078]
[1736487433424,3.2078,3267.6,3266.8,0.4521]
[1736487433723,2.29676406,3267.3,3266.9,40.8]
[1736487434221,3.2078,3267.2,3266.9,40.8]
[1736487435323,0.4721,3268.0,3267.0,3.2078]
[1736487435324,3.2078,3267.7,3267.0,3.2078]
[1736487435522,5.50456406,3267.7,3267.0,3.2078]
[1736487435721,5.81060406,3267.7,3267.1,0.30609]
[1736487436024,0.30605,3267.6,3267.0,3.2078]
[1736487436224,5.81066406,3267.1,3266.9,40.8]
[1736487436419,5.50456406,3267.1,3266.5,0.78364]
[1736487436616,3.2078,3267.1,3266.7,0.30612]
[1736487436925,3.2078,3267.1,3266.8,40.8]
[1736487438522,5.50456406,3267.1,3266.8,40.8]
[1736487439025,5.81066406,3267.1,3266.8,40.8]
[1736487439231,0.3061,3267.0,3266.8,40.8]
[1736487439424,5.81066406,3267.1,3266.8,40.8]
[1736487439722,3.2078,3267.1,3266.8,40.8]
[1736487439927,3.2078,3267.1,3267.0,0.3061]
[1736487440520,5.50456406,3267.1,3266.8,40.8]
[1736487440730,3.2078,3267.4,3266.8,40.8]
[1736487440927,3.2078,3267.4,3267.3,0.30607]
[1736487441525,3.2078,3267.4,3267.3,40.8]
[1736487441831,3.2078,3267.8,3267.3,40.8]
[1736487442129,3.2078,3268.3,3268.1,0.306]
[1736487442331,5.50456406,3268.7,3268.0,0.30601]
[1736487442521,5.50456406,3268.7,3267.4,4.5915]
[1736487442522,0.30597,3268.5,3267.9,0.30601]
[1736487442721,3.2078,3268.3,3267.9,0.30601]
[1736487442919,3.2078,3268.3,3267.4,4.5915]
[1736487442920,3.2078,3268.3,3267.4,1.3837]
[1736487443124,0.30605,3267.6,3267.3,40.8]
[1736487443427,0.30609,3267.2,3266.7,0.75383]
[1736487443731,3.2078,3267.4,3266.7,0.4477]
[1736487444031,0.30609,3267.2,3266.8,40.8]
[1736487444239,0.4731,3267.5,3266.8,40.8]
[1736487444240,5.50456406,3267.0,3266.8,40.8]
[1736487444626,3.2078,3267.0,3266.8,40.8]
[1736487444825,3.2078,3267.4,3266.8,40.8]
[1736487445023,3.2078,3267.0,3266.8,40.8]
[1736487445827,0.30611,3266.9,3266.8,40.8]
[1736487446224,0.30611,3266.9,3266.4,0.74796]
[1736487446424,3.2078,3267.0,3266.4,0.4418]
[1736487446626,3.2078,3267.0,3266.8,0.30612]
[1736487447622,3.51387,3267.4,3266.6,3.2078]
[1736487447829,0.30608,3267.3,3266.9,0.30611]
[1736487448029,0.30608,3267.3,3266.7,0.30613]
[1736487448330,3.2078,3267.4,3266.6,3.2078]
[1736487448526,0.30607,3267.3,3266.6,3.2078]
[1736487448731,3.2078,3267.4,3266.9,0.30611]
[1736487448925,3.2078,3267.4,3266.6,3.2078]
[1736487449433,3.2078,3267.4,3267.2,0.30608]
[1736487449733,3.2078,3267.4,3266.6,4.4698]
[1736487449934,3.2078,3267.9,3267.5,0.30605]
[1736487450225,3.51382,3267.9,3267.6,0.4524]
[1736487450528,3.2078,3267.9,3267.6,0.4524]
[1736487450724,3.51382,3267.9,3267.6,0.4524]
[1736487450925,3.2078,3267.9,3267.6,0.4524]
[1736487451224,3.2078,3267.9,3266.2,1.54493528]
[1736487451225,2.34791275,3267.8,3266.3,3.2078]
[1736487451425,3.51391,3267.0,3266.5,0.30614]
[1736487451627,3.2078,3267.0,3266.3,4.1307]
[1736487451831,3.2078,3267.4,3266.4,40.8]
[1736487452029,3.2078,3267.0,3266.4,41.10615]
[1736487452228,0.30614,3266.6,3266.4,40.8]
[1736487452527,5.50456406,3267.0,3266.3,4.1307]
[1736487452728,0.30616,3266.4,3266.3,0.4524]
[1736487453233,0.30619,3266.1,3266.0,40.8]
[1736487453429,3.51399,3266.1,3266.0,40.8]
[1736487455034,3.2078,3266.1,3266.0,40.8]
[1736487455235,3.51399,3266.1,3266.0,40.8]
[1736487455929,3.2078,3266.1,3266.0,40.8]
[1736487456235,3.2078,3266.5,3266.0,40.8]
[1736487456435,2.29676406,3267.0,3266.5,0.30614]
[1736487456436,0.30612,3266.9,3266.5,0.30614]
[1736487456829,0.30613,3266.8,3266.4,0.30615]
[1736487457030,5.50456406,3267.0,3266.5,0.30614]
[1736487457031,0.30612,3266.9,3266.5,0.30614]
[1736487457229,5.50456406,3267.0,3266.1,0.4795]
[1736487457230,3.2078,3267.0,3266.1,0.4795]
[1736487457432,3.2078,3267.0,3266.9,0.30611]
[1736487457633,3.2078,3267.0,3266.8,0.30612]
[1736487458128,3.2078,3267.0,3266.2,3.2078]
[1736487458324,3.2078,3267.4,3266.6,3.2078]
[1736487458531,3.2078,3267.4,3266.9,40.8]
[1736487458830,3.2078,3267.4,3267.3,0.30607]
[1736487459129,3.2078,3267.4,3267.0,0.469]
[1736487459331,3.2078,3267.4,3267.3,0.30607]
[1736487459925,2.4883,3267.4,3267.3,0.30607]
[1736487460130,3.2078,3267.8,3267.0,3.6768]
[1736487460326,0.30601,3268.1,3267.7,0.30603]
[1736487460530,3.2078,3268.2,3267.7,0.30603]
[1736487460531,0.30601,3268.0,3267.7,0.30603]
[1736487460732,0.30601,3268.1,3267.7,0.30603]
[1736487461134,3.2078,3268.2,3267.5,0.4709]
[1736487461333,2.29676406,3268.6,3267.5,0.4709]
[1736487461640,2.29676406,3268.6,3268.0,0.306]
[1736487461641,0.30598,3268.4,3268.0,0.306]
[1736487462129,0.30598,3268.3,3267.6,0.30604]
[1736487462331,0.30601,3268.0,3267.6,0.30604]
[1736487462526,0.306,3268.2,3267.7,0.30603]
[1736487462738,0.306,3268.2,3267.5,0.4709]
[1736487462739,3.2078,3268.4,3267.5,0.4709]
[1736487463235,3.51378,3268.4,3267.9,0.30601]
[1736487463741,0.30598,3268.3,3267.5,0.9384]
[1736487463930,3.2078,3268.4,3267.6,40.8]
[1736487464129,3.2078,3268.4,3267.5,0.4709]
[1736487464433,0.30603,3267.8,3267.5,0.4709]
[1736487464735,0.30602,3267.9,3267.5,0.77695]
[1736487464931,3.2078,3268.4,3267.6,0.30604]
[1736487465130,0.306,3268.2,3267.6,0.30604]
[1736487465337,3.2078,3268.4,3267.6,0.30604]
[1736487465538,0.306,3268.1,3267.6,0.30604]
[1736487465739,3.2078,3268.4,3267.5,0.4709]
[1736487465937,3.51377,3268.4,3267.9,0.30602]
[1736487466240,0.30598,3268.3,3267.8,0.30602]
[1736487466746,3.51378,3268.4,3267.5,0.9297]
[1736487466935,3.51378,3268.4,3267.9,0.30601]
[1736487467141,0.30598,3268.3,3267.8,0.30603]
[1736487467439,0.30598,3268.3,3267.9,0.30601]
[1736487467639,3.51378,3268.4,3267.9,0.30601]
[1736487467833,3.51378,3268.4,3268.0,0.30601]
[1736487468139,0.30598,3268.3,3267.9,0.30601]
[1736487468639,0.30598,3268.3,3267.5,0.9297]
[1736487468838,0.30598,3268.3,3267.9,0.30601]
[1736487469842,3.2078,3268.4,3268.3,0.30598]
[1736487470145,0.00193042,3268.9,3268.2,3.2078]
[1736487470146,3.20973042,3268.9,3268.2,3.2078]
[1736487470339,0.00193042,3268.9,3268.8,0.30593]
[1736487470642,0.00193042,3268.9,3268.8,41.10593]
[1736487473243,3.2078,3269.8,3268.8,41.10593]
[1736487473244,3.2078,3269.8,3268.8,45.8]
[1736487473439,3.2078,3269.8,3269.5,0.30586]
[1736487474146,0.30584,3269.9,3269.5,0.30586]
[1736487474445,0.30583,3270.0,3269.5,0.30586]
[1736487474641,3.2078,3270.2,3269.3,3.2078]
[1736487474835,0.30582,3270.1,3269.3,3.2078]
[1736487475031,3.2078,3270.2,3269.9,0.30582]
[1736487475244,3.2078,3270.2,3269.3,3.2078]
[1736487475245,3.2078,3270.2,3270.0,0.30582]
[1736487475940,3.2078,3270.2,3269.9,0.30582]
[1736487476141,3.2078,3270.2,3269.8,0.30583]
[1736487476341,3.2078,3270.2,3269.9,0.30583]
[1736487476546,3.2078,3270.2,3269.9,40.8]
[1736487476744,3.2078,3270.2,3270.0,0.30582]
[1736487476942,3.2078,3270.2,3270.1,0.30581]
[1736487477145,2.29676406,3271.1,3269.9,40.8]
[1736487477346,3.2078,3270.7,3270.3,0.30579]
[1736487477749,3.2078,3271.1,3270.6,0.30577]
[1736487478049,3.51352,3271.1,3270.6,0.30576]
[1736487478444,3.2078,3271.1,3270.3,0.432]
[1736487478654,3.2078,3271.1,3270.5,3.2078]
[1736487478837,3.2078,3271.1,3270.9,0.30573]
[1736487479144,3.2078,3271.1,3270.5,3.2078]
[1736487479145,3.2078,3271.1,3270.7,0.30575]
[1736487479838,3.2078,3271.1,3270.5,3.2078]
[1736487480042,3.2078,3271.1,3270.6,0.30576]
[1736487480246,3.2078,3271.1,3270.7,0.30576]
[1736487480443,3.2078,3271.1,3270.5,3.2078]
[1736487480650,0.30577,3270.6,3270.5,3.2078]
[1736487480844,3.2078,3271.1,3270.5,3.2078]
[1736487481045,0.30573,3271.0,3270.5,3.2078]
[1736487481246,3.51352,3271.1,3270.5,3.2078]
[1736487481445,0.9129,3271.3,3270.5,3.2078]
[1736487481948,3.2078,3271.0,3270.5,3.2078]
[1736487482245,3.2078,3271.0,3270.5,3.51357]
[1736487482453,3.2078,3271.0,3270.5,3.2078]
[1736487482646,3.51353,3271.0,3270.5,3.51357]
[1736487482845,3.2078,3271.0,3270.6,0.30577]
[1736487483154,0.30573,3271.0,3270.5,3.51357]
[1736487483453,0.9129,3271.3,3270.5,3.2078]
[1736487483649,3.51353,3271.0,3270.5,3.51357]
[1736487484146,3.51353,3271.0,3270.5,3.2078]
[1736487484147,3.2078,3271.0,3270.5,3.2078]
[1736487484548,3.51353,3271.0,3270.5,3.51357]
[1736487484747,0.30575,3270.9,3270.5,3.2078]
[1736487484942,3.2078,3271.0,3270.5,3.2078]
[1736487485149,0.30578,3270.5,3270.1,3.2078]
[1736487485542,3.2078,3271.0,3270.1,3.2078]
[1736487485749,0.3058,3270.3,3269.8,0.30584]
[1736487485947,3.2078,3270.6,3269.6,3.2078]
[1736487486148,0.30585,3269.7,3269.2,3.51369]
[1736487486352,3.2078,3270.1,3269.2,3.2078]
[1736487486651,3.2078,3270.1,3270.0,0.30582]
[1736487486853,0.30576,3270.7,3269.7,3.2078]
[1736487486854,3.51356,3270.7,3269.7,3.2078]
[1736487487051,3.2078,3270.7,3269.9,2.29676406]
[1736487487245,0.474,3270.9,3270.6,0.30576]
[1736487487451,0.4418,3271.0,3270.1,3.2078]
[1736487487651,0.30575,3270.9,3270.3,0.30578]
[1736487487854,0.74753,3271.0,3270.6,0.30576]
[1736487488055,0.74753,3271.0,3270.2,0.3058]
[1736487488259,0.30574,3270.9,3270.4,0.30578]
[1736487488561,0.30577,3270.6,3270.1,3.51361]
[1736487488857,3.2078,3270.4,3269.4,3.2078]
[1736487489047,3.2078,3270.0,3269.5,0.30587]
[1736487489450,3.2078,3270.0,3269.4,3.2078]
[1736487489747,0.30585,3269.8,3269.4,3.2078]
[1736487490060,0.30586,3269.7,3269.4,3.2078]
[1736487490350,0.30586,3269.6,3269.3,40.8]
[1736487490560,3.2078,3270.0,3269.3,40.8]
[1736487490751,0.30586,3269.6,3269.3,40.8]
[1736487491153,2.87499592,3271.9,3270.0,0.5]
[1736487491455,2.87499592,3271.9,3271.3,3.2078]
[1736487491761,2.87499592,3271.9,3271.3,44.0078]
[1736487491947,2.87499592,3271.9,3271.8,3.51345]
[1736487492353,2.87499592,3271.9,3271.8,3.2078]
[1736487492651,7.87499592,3271.9,3271.4,3.2078]
[1736487492853,0.4394,3271.8,3271.4,3.2078]
[1736487493253,0.30568,3271.5,3271.4,3.2078]
[1736487493454,0.30569,3271.5,3270.8,3.2078]
[1736487493653,0.3057,3271.4,3270.8,3.51354]
[1736487493864,3.2078,3271.6,3270.8,3.2078]
[1736487494154,0.30569,3271.5,3270.8,3.2078]
[1736487494359,3.51347,3271.6,3271.1,0.30571]
[1736487494557,3.51347,3271.6,3270.8,3.2078]
[1736487494757,1.722,3271.7,3271.3,0.30569]
[1736487494958,1.722,3271.7,3271.5,0.30568]
[1736487495262,2.87499592,3271.9,3271.6,3.2078]
[1736487495452,2.87499592,3271.9,3271.8,0.30565]
[1736487495850,2.87499592,3271.9,3271.8,41.10565]
[1736487496858,2.87499592,3271.9,3271.8,40.8]
[1736487497055,2.87499592,3271.9,3271.8,41.10565]
[1736487497755,2.87499592,3271.9,3271.8,0.30565]
[1736487497958,2.87499592,3271.9,3271.6,3.2078]
[1736487498156,2.87499592,3271.9,3271.7,40.8]
[1736487498755,2.87499592,3271.9,3271.6,3.51347]
[1736487498956,2.87499592,3271.9,3271.6,3.2078]
[1736487498957,0.4381,3271.8,3271.6,3.2078]
[1736487499456,0.4381,3271.8,3271.7,0.30566]
[1736487499661,2.87499592,3271.9,3271.6,3.2078]
[1736487500160,2.87499592,3271.9,3271.7,0.30566]
[1736487500762,2.87499592,3271.9,3271.8,0.30565]
[1736487501565,2.87499592,3271.9,3271.6,3.2078]
[1736487501959,2.87499592,3271.9,3271.2,3.2078]
[1736487501960,0.30568,3271.6,3271.2,3.2078]
[1736487502160,0.4451,3271.8,3271.2,3.5135]
[1736487502463,0.30569,3271.5,3271.2,3.2078]
[1736487502663,0.4712,3271.7,3271.2,3.2078]
[1736487503262,0.30572,3271.2,3270.7,3.51355]
[1736487503469,0.30572,3271.1,3270.7,3.51355]
[1736487503660,0.4451,3271.1,3270.7,3.2078]
[1736487503862,0.30573,3271.0,3270.7,3.2078]
[1736487504162,0.4451,3271.1,3270.3,3.2078]
[1736487504163,0.30577,3270.6,3270.3,3.2078]
[1736487504463,0.30573,3271.0,3270.3,3.2078]
[1736487504768,0.05109599,3270.9,3270.7,0.30575]
[1736487504961,0.30576,3270.7,3270.3,3.51359]
[1736487505165,3.2078,3271.1,3270.3,3.2078]
[1736487505367,5.52992663,3271.9,3270.8,3.2078]
[1736487505368,6.08279592,3271.9,3270.8,3.2078]
[1736487505663,3.2078,3270.9,3269.8,3.2078]
[1736487505865,3.2078,3270.5,3269.9,0.30582]
[1736487506063,3.2078,3270.5,3269.9,0.30583]
[1736487506269,2.2365,3270.8,3269.8,3.2078]
[1736487506465,1.343,3270.8,3270.5,0.30577]
[1736487506867,1.343,3270.8,3270.2,3.2078]
[1736487507070,1.343,3270.8,3270.6,0.30577]
[1736487507266,1.64875,3270.8,3270.2,3.2078]
[1736487507462,1.343,3270.8,3270.2,3.2078]
[1736487507667,1.343,3270.8,3270.7,0.30576]
[1736487507870,3.6607,3271.6,3270.3,40.8]
[1736487508068,1.39409036,3271.5,3270.3,40.8]
[1736487508265,3.6607,3271.6,3271.2,0.3057]
[1736487508266,0.30567,3271.6,3271.2,0.3057]
[1736487508475,0.74626,3271.8,3271.5,0.30568]
[1736487508662,0.4406,3271.8,3271.2,0.4393]
[1736487508861,0.74626,3271.8,3271.2,0.4393]
[1736487509067,0.74626,3271.8,3271.4,0.30568]
[1736487509372,2.87499592,3271.9,3271.7,3.2078]
[1736487509572,2.87499592,3271.9,3271.8,0.30565]
[1736487509867,2.87499592,3271.9,3271.7,3.51346]
[1736487510068,2.87499592,3271.9,3271.8,0.30565]
[1736487510566,2.87499592,3271.9,3271.7,3.51346]
[1736487511168,2.87499592,3271.9,3271.8,0.30565]
[1736487511570,2.87499592,3271.9,3271.7,3.2078]
[1736487512467,3.18064592,3271.9,3271.7,3.2078]
[1736487512968,0.30566,3271.7,3271.3,3.51349]
[1736487513174,2.87499592,3271.9,3271.3,3.2078]
[1736487513478,0.30566,3271.7,3271.3,3.51349]
[1736487513666,2.87499592,3271.9,3271.3,3.2078]
[1736487513866,0.30566,3271.7,3271.3,3.5135]
[1736487514066,0.30567,3271.7,3271.3,3.5135]
[1736487514271,0.30567,3271.6,3271.3,3.2078]
[1736487514777,0.30568,3271.6,3271.3,3.2078]
[1736487514973,2.87499592,3271.9,3271.6,0.30567]
[1736487515173,2.87499592,3271.9,3271.8,3.51345]
[1736487515369,3.18063592,3271.9,3271.8,3.2078]
[1736487515976,2.87499592,3271.9,3271.8,3.2078]
[1736487516377,2.87499592,3271.9,3271.8,3.51345]
[1736487519084,2.87499592,3271.9,3271.8,3.2078]
[1736487519282,2.87499592,3271.9,3271.4,3.2078]
[1736487519574,0.30568,3271.6,3271.4,3.2078]
[1736487519985,2.87499592,3271.9,3271.4,3.2078]
[1736487519986,0.30568,3271.5,3271.4,3.2078]
[1736487520479,0.30573,3271.0,3270.9,3.2078]
[1736487520680,1.342,3271.1,3270.3,3.2078]
[1736487520983,0.30578,3270.4,3270.3,44.0078]
[1736487521277,0.30577,3270.6,3270.3,44.0078]